[Event "Championnat d'Europe de Blitz"]
[Date "2024.12.09"]
[White "Kizov, Atanas"]
[Black "Gaponenko, Inna"]
[WhiteElo "2396"]
[BlackElo "2343"]
[Round "12.45"]
[Result "1/2-1/2"]
[TimeControl "180+2"]

1. d4 {[%clk 00:03:03]} d5 {[%clk 00:03:04]} 2. c4 {[%clk 00:03:04]} dxc4 {[%emt
00:00:02] [%clk 00:03:05]} 3. Nf3 {[%emt 00:00:05] [%clk 00:03:01]} Nf6 {[%emt
00:00:01] [%clk 00:03:06]} 4. e3 {[%emt 00:00:01] [%clk 00:03:02]} e6 {[%clk
00:03:07]} 5. Bxc4 {[%emt 00:00:01] [%clk 00:03:03]} c5 {[%clk 00:03:08]} 6. O-O
{[%emt 00:00:02] [%clk 00:03:03]} Nc6 {[%clk 00:03:10]} 7. a3 {[%emt 00:00:03]
[%clk 00:03:03]} a6 {[%emt 00:00:02] [%clk 00:03:09]} 8. Nc3 {[%emt 00:00:01]
[%clk 00:03:04]} b5 {[%emt 00:00:02] [%clk 00:03:10]} 9. Ba2 {[%emt 00:00:05]
[%clk 00:03:01]} Bb7 {[%emt 00:00:21] [%clk 00:02:51]} 10. Qe2 {[%emt 00:00:05]
[%clk 00:02:57]} Be7 {[%emt 00:00:14] [%clk 00:02:39]} 11. Rd1 {[%clk 00:02:58]}
Qc7 {[%emt 00:00:04] [%clk 00:02:37]} 12. d5 {[%emt 00:00:09] [%clk 00:02:51]}
exd5 {[%emt 00:00:02] [%clk 00:02:37]} 13. Nxd5 {[%clk 00:02:53]} Nxd5 {[%emt
00:00:02] [%clk 00:02:37]} 14. Bxd5 {[%emt 00:00:01] [%clk 00:02:54]} O-O {[%emt
00:00:03] [%clk 00:02:37]} 15. e4 {[%emt 00:00:05] [%clk 00:02:51]} Rad8 {[%emt
00:00:14] [%clk 00:02:24]} 16. Be3 {[%emt 00:00:03] [%clk 00:02:50]} Na5 {[%emt
00:00:03] [%clk 00:02:23]} 17. Bxb7 {[%emt 00:00:54] [%clk 00:01:58]} Qxb7
{[%emt 00:00:05] [%clk 00:02:21]} 18. Bf4 {[%emt 00:00:08] [%clk 00:01:51]} Nb3
{[%emt 00:00:08] [%clk 00:02:16]} 19. Rab1 {[%emt 00:00:01] [%clk 00:01:52]} c4
{[%emt 00:00:02] [%clk 00:02:16]} 20. e5 {[%emt 00:00:06] [%clk 00:01:48]} Qc6
{[%emt 00:00:08] [%clk 00:02:10]} 21. h4 {[%emt 00:00:09] [%clk 00:01:40]} Rxd1+
{[%emt 00:00:12] [%clk 00:02:00]} 22. Rxd1 {[%emt 00:00:01] [%clk 00:01:42]} Rd8
{[%clk 00:02:00]} 23. Bg5 {[%emt 00:00:10] [%clk 00:01:34]} Bxg5 {[%emt
00:00:43] [%clk 00:01:19]} 24. Nxg5 {[%emt 00:00:05] [%clk 00:01:31]} Nd4 {[%emt
00:00:06] [%clk 00:01:15]} 25. Qh5 {[%emt 00:00:25] [%clk 00:01:03]} Qg6 {[%emt
00:00:07] [%clk 00:01:16]} 26. Qxg6 {[%emt 00:00:03] [%clk 00:01:02]} hxg6
{[%emt 00:00:02] [%clk 00:01:15]} 27. Kf1 {[%clk 00:01:03]} Ne6 {[%emt 00:00:09]
[%clk 00:01:08]} 28. Rxd8+ {[%emt 00:00:05] [%clk 00:01:00]} Nxd8 {[%clk
00:01:09]} 29. Ke2 {[%emt 00:00:01] [%clk 00:01:02]} Nc6 {[%emt 00:00:04] [%clk
00:01:07]} 30. f4 {[%emt 00:00:04] [%clk 00:00:59]} f6 {[%emt 00:00:10] [%clk
00:00:59]} 31. Nf3 {[%emt 00:00:04] [%clk 00:00:57]} Kf7 {[%emt 00:00:01] [%clk
00:01:00]} 32. Ke3 {[%emt 00:00:01] [%clk 00:00:59]} Ke6 {[%emt 00:00:07] [%clk
00:00:54]} 33. Ke4 {[%emt 00:00:02] [%clk 00:01:00]} f5+ {[%emt 00:00:16] [%clk
00:00:40]} 34. Ke3 {[%clk 00:01:01]} Kd5 {[%emt 00:00:01] [%clk 00:00:41]} 35.
Nh2 {[%emt 00:00:22] [%clk 00:00:40]} a5 {[%emt 00:00:03] [%clk 00:00:41]} 36.
g4 {[%emt 00:00:01] [%clk 00:00:41]} b4 {[%emt 00:00:02] [%clk 00:00:41]} 37.
axb4 {[%emt 00:00:01] [%clk 00:00:42]} axb4 {[%clk 00:00:42]} 38. gxf5 {[%clk
00:00:43]} gxf5 {[%emt 00:00:02] [%clk 00:00:43]} 39. Nf3 {[%clk 00:00:45]} Ne7
{[%emt 00:00:27] [%clk 00:00:18]} 40. h5 {[%emt 00:00:03] [%clk 00:00:44]} Ng8
{[%emt 00:00:05] [%clk 00:00:15]} 41. Nd4 {[%emt 00:00:05] [%clk 00:00:41]} Nh6
{[%clk 00:00:15]} 42. Nc2 {[%emt 00:00:01] [%clk 00:00:42]} Ng4+ {[%emt
00:00:04] [%clk 00:00:13]} 43. Kf3 {[%emt 00:00:02] [%clk 00:00:42]} Kc5 {[%emt
00:00:02] [%clk 00:00:13]} 44. Ne3 {[%emt 00:00:06] [%clk 00:00:39]} Nxe3 {[%emt
00:00:05] [%clk 00:00:10]} 45. Kxe3 {[%clk 00:00:40]} Kd5 {[%emt 00:00:02] [%clk
00:00:11]} 46. Kd2 {[%emt 00:00:01] [%clk 00:00:40]} Kc6 {[%emt 00:00:02] [%clk
00:00:12]} 47. Kc2 {[%emt 00:00:01] [%clk 00:00:41]} Kd5 {[%emt 00:00:02] [%clk
00:00:12]} 48. Kd2 {[%clk 00:00:42]} Kc6 {[%emt 00:00:01] [%clk 00:00:14]} 49.
Kc2 {[%emt 00:00:01] [%clk 00:00:43]} Kd5 {[%emt 00:00:01] [%clk 00:00:15]} 50.
Kd2 {[%emt 00:00:01] [%clk 00:00:43]} Kc6 {[%clk 00:00:17]} 51. Kc2 {[%emt
00:00:01] [%clk 00:00:44]} 1/2-1/2

[Site "Europe Echecs"]

[Event "Championnat d'Europe de Blitz"]
[Date "2024.12.09"]
[White "Trushko, Andrii"]
[Black "Zawadzka, Jolanta"]
[WhiteElo "2143"]
[BlackElo "2331"]
[Round "12.46"]
[Result "1-0"]
[TimeControl "180+2"]

1. d4 {[%emt 00:13:23] [%clk 00:03:04]} d5 {[%emt 00:00:03] [%clk 00:03:03]} 2.
Bf4 {[%clk 00:03:05]} Nf6 {[%emt 00:00:03] [%clk 00:03:02]} 3. e3 {[%clk
00:03:06]} c5 {[%emt 00:00:02] [%clk 00:03:03]} 4. c3 {[%emt 00:00:01] [%clk
00:03:07]} Nc6 {[%emt 00:00:02] [%clk 00:03:02]} 5. Nd2 {[%emt 00:00:02] [%clk
00:03:07]} cxd4 {[%emt 00:00:07] [%clk 00:02:57]} 6. exd4 {[%emt 00:00:02] [%clk
00:03:07]} Bf5 {[%emt 00:00:02] [%clk 00:02:57]} 7. Ngf3 {[%emt 00:00:07] [%clk
00:03:02]} e6 {[%emt 00:00:02] [%clk 00:02:58]} 8. h3 {[%clk 00:03:03]} Bd6
{[%emt 00:00:07] [%clk 00:02:53]} 9. Bxd6 {[%emt 00:00:02] [%clk 00:03:03]} Qxd6
{[%emt 00:00:01] [%clk 00:02:53]} 10. Bb5 {[%emt 00:00:02] [%clk 00:03:04]} O-O
{[%emt 00:00:03] [%clk 00:02:52]} 11. O-O {[%emt 00:00:02] [%clk 00:03:04]} h6
{[%emt 00:00:06] [%clk 00:02:48]} 12. Re1 {[%emt 00:00:01] [%clk 00:03:05]} Nd7
{[%emt 00:00:02] [%clk 00:02:48]} 13. Nb3 {[%emt 00:00:10] [%clk 00:02:56]} Bh7
{[%emt 00:00:08] [%clk 00:02:42]} 14. Qd2 {[%emt 00:00:11] [%clk 00:02:47]} a6
{[%emt 00:00:02] [%clk 00:02:42]} 15. Bxc6 {[%emt 00:00:02] [%clk 00:02:48]}
Qxc6 {[%emt 00:00:06] [%clk 00:02:38]} 16. Ne5 {[%emt 00:00:01] [%clk 00:02:49]}
Nxe5 {[%emt 00:00:04] [%clk 00:02:35]} 17. dxe5 {[%emt 00:00:02] [%clk
00:02:49]} Rac8 {[%emt 00:00:05] [%clk 00:02:33]} 18. Nd4 {[%clk 00:02:50]} Qc7
{[%emt 00:00:06] [%clk 00:02:29]} 19. Re3 {[%emt 00:00:06] [%clk 00:02:45]} Kh8
{[%emt 00:00:03] [%clk 00:02:28]} 20. Rf1 {[%emt 00:00:03] [%clk 00:02:44]} b5
{[%emt 00:00:03] [%clk 00:02:28]} 21. a3 {[%emt 00:00:01] [%clk 00:02:44]} Qc4
{[%emt 00:00:06] [%clk 00:02:24]} 22. Rg3 {[%emt 00:00:20] [%clk 00:02:26]} a5
{[%emt 00:00:14] [%clk 00:02:13]} 23. f4 {[%emt 00:00:01] [%clk 00:02:27]} Rb8
{[%emt 00:00:31] [%clk 00:01:44]} 24. f5 {[%emt 00:00:03] [%clk 00:02:25]} exf5
{[%emt 00:00:02] [%clk 00:01:45]} 25. Qe3 {[%emt 00:01:12] [%clk 00:01:14]} b4
{[%emt 00:00:19] [%clk 00:01:29]} 26. axb4 {[%emt 00:00:01] [%clk 00:01:15]}
axb4 {[%clk 00:01:30]} 27. e6 {[%clk 00:01:17]} fxe6 {[%emt 00:00:13] [%clk
00:01:19]} 28. Qe5 {[%clk 00:01:18]} Rb7 {[%emt 00:00:11] [%clk 00:01:09]} 29.
Nxe6 {[%emt 00:00:04] [%clk 00:01:16]} Rg8 {[%emt 00:00:04] [%clk 00:01:07]} 30.
Rf4 {[%emt 00:00:08] [%clk 00:01:11]} Qb3 {[%emt 00:00:08] [%clk 00:01:01]} 31.
Rh4 {[%emt 00:00:07] [%clk 00:01:05]} Qd1+ {[%emt 00:00:02] [%clk 00:01:01]} 32.
Kh2 {[%emt 00:00:02] [%clk 00:01:05]} Qd2 {[%emt 00:00:01] [%clk 00:01:02]} 33.
cxb4 {[%emt 00:00:10] [%clk 00:00:58]} Re7 {[%emt 00:00:06] [%clk 00:00:57]} 34.
Qd6 {[%emt 00:00:07] [%clk 00:00:54]} Rf7 {[%emt 00:00:08] [%clk 00:00:50]} 35.
Nf4 {[%emt 00:00:05] [%clk 00:00:51]} Rf6 {[%emt 00:00:09] [%clk 00:00:43]} 36.
Qe5 {[%emt 00:00:08] [%clk 00:00:46]} Rgf8 {[%emt 00:00:07] [%clk 00:00:38]} 37.
Nh5 {[%emt 00:00:07] [%clk 00:00:41]} f4 {[%emt 00:00:12] [%clk 00:00:28]} 38.
Rxg7 {[%emt 00:00:01] [%clk 00:00:41]} Qe3 {[%emt 00:00:07] [%clk 00:00:23]} 39.
Rxh7+ {[%emt 00:00:07] [%clk 00:00:36]} Kxh7 {[%emt 00:00:04] [%clk 00:00:21]}
40. Nxf6+ {[%emt 00:00:01] [%clk 00:00:37]} Rxf6 {[%emt 00:00:02] [%clk
00:00:22]} 41. Qc3 {[%emt 00:00:18] [%clk 00:00:21]} d4 {[%emt 00:00:03] [%clk
00:00:21]} 42. Qc7+ {[%emt 00:00:07] [%clk 00:00:15]} Kg6 {[%emt 00:00:13] [%clk
00:00:11]} 43. Rg4+ {[%emt 00:00:03] [%clk 00:00:13]} Kf5 {[%emt 00:00:01] [%clk
00:00:12]} 44. Qc5+ {[%emt 00:00:06] [%clk 00:00:10]} Ke4 {[%emt 00:00:01] [%clk
00:00:12]} 45. Rg8 {[%emt 00:00:03] [%clk 00:00:09]} Re6 {[%emt 00:00:02] [%clk
00:00:12]} 46. Qc4 {[%emt 00:00:04] [%clk 00:00:07]} Ke5 {[%emt 00:00:03] [%clk
00:00:11]} 47. b5 {[%emt 00:00:03] [%clk 00:00:06]} d3 {[%emt 00:00:02] [%clk
00:00:11]} 48. Qc3+ {[%clk 00:00:08]} Ke4 {[%clk 00:00:12]} 49. Qc4+ {[%emt
00:00:03] [%clk 00:00:07]} Ke5 {[%emt 00:00:01] [%clk 00:00:13]} 50. Qc3+ {[%emt
00:00:02] [%clk 00:00:06]} Ke4 {[%clk 00:00:15]} 51. Rg4 {[%emt 00:00:03] [%clk
00:00:05]} d2 {[%emt 00:00:02] [%clk 00:00:15]} 52. Qc4+ {[%clk 00:00:06]} Ke5
{[%emt 00:00:02] [%clk 00:00:15]} 53. Qc2 {[%emt 00:00:02] [%clk 00:00:06]} Rd6
{[%emt 00:00:03] [%clk 00:00:15]} 54. Qd1 {[%clk 00:00:07]} Qe1 {[%emt 00:00:03]
[%clk 00:00:15]} 55. Qf3 {[%emt 00:00:01] [%clk 00:00:07]} Qe4 {[%emt 00:00:05]
[%clk 00:00:12]} 56. Qd1 {[%emt 00:00:02] [%clk 00:00:07]} Kf5 {[%emt 00:00:02]
[%clk 00:00:12]} 57. Rh4 {[%emt 00:00:02] [%clk 00:00:07]} Ke5 {[%emt 00:00:04]
[%clk 00:00:10]} 58. Rh5+ {[%emt 00:00:01] [%clk 00:00:07]} Ke6 {[%emt 00:00:02]
[%clk 00:00:11]} 59. Rxh6+ {[%clk 00:00:08]} Kd7 {[%clk 00:00:12]} 60. Rxd6+
{[%emt 00:00:02] [%clk 00:00:08]} Kxd6 {[%emt 00:00:01] [%clk 00:00:13]} 61.
Qxd2+ {[%clk 00:00:10]} Kc5 {[%emt 00:00:01] [%clk 00:00:14]} 62. Qc3+ {[%emt
00:00:02] [%clk 00:00:10]} Kxb5 {[%emt 00:00:03] [%clk 00:00:13]} 63. Qf3 {[%clk
00:00:11]} Qf5 {[%emt 00:00:02] [%clk 00:00:13]} 64. h4 {[%emt 00:00:01] [%clk
00:00:11]} Kb4 {[%clk 00:00:14]} 65. h5 {[%emt 00:00:05] [%clk 00:00:09]} Qg5
{[%clk 00:00:15]} 66. Qh3 {[%emt 00:00:03] [%clk 00:00:07]} Qh6 {[%emt 00:00:02]
[%clk 00:00:16]} 67. Qg4 {[%emt 00:00:01] [%clk 00:00:07]} Kb3 {[%emt 00:00:02]
[%clk 00:00:16]} 68. Qg6 {[%clk 00:00:08]} Qh8 {[%emt 00:00:02] [%clk 00:00:16]}
69. h6 {[%emt 00:00:01] [%clk 00:00:09]} Qd8 {[%emt 00:00:02] [%clk 00:00:16]}
70. Qh5 {[%emt 00:00:04] [%clk 00:00:07]} Qd3 {[%emt 00:00:02] [%clk 00:00:16]}
71. Qh3 {[%emt 00:00:01] [%clk 00:00:08]} 1-0

[Site "Europe Echecs"]

[Event "Championnat d'Europe de Blitz"]
[Date "2024.12.09"]
[White "Aizenberg, Benny"]
[Black "Todorovic, Goran N"]
[WhiteElo "2425"]
[BlackElo "2256"]
[Round "12.47"]
[Result "1-0"]
[TimeControl "180+2"]

1. e4 {[%clk 00:03:03]} Nc6 {[%clk 00:03:03]} 2. d4 {[%emt 00:00:03] [%clk
00:03:01]} d5 {[%clk 00:03:04]} 3. Nc3 {[%emt 00:00:03] [%clk 00:03:01]} Nf6
{[%emt 00:00:03] [%clk 00:03:02]} 4. e5 {[%emt 00:00:02] [%clk 00:03:01]} Ng8
{[%clk 00:03:03]} 5. f4 {[%emt 00:00:05] [%clk 00:02:59]} Bf5 {[%emt 00:00:01]
[%clk 00:03:03]} 6. Nf3 {[%emt 00:00:03] [%clk 00:02:58]} e6 {[%emt 00:00:19]
[%clk 00:02:47]} 7. Bd3 {[%emt 00:00:06] [%clk 00:02:54]} Bxd3 {[%emt 00:00:09]
[%clk 00:02:39]} 8. Qxd3 {[%emt 00:00:02] [%clk 00:02:54]} Nh6 {[%emt 00:00:01]
[%clk 00:02:40]} 9. Ne2 {[%emt 00:00:09] [%clk 00:02:48]} Nf5 {[%emt 00:00:02]
[%clk 00:02:39]} 10. c3 {[%emt 00:00:05] [%clk 00:02:45]} h5 {[%emt 00:00:03]
[%clk 00:02:37]} 11. Ng3 {[%emt 00:00:04] [%clk 00:02:44]} Nce7 {[%emt 00:00:10]
[%clk 00:02:29]} 12. Qb5+ {[%emt 00:00:07] [%clk 00:02:39]} c6 {[%emt 00:00:09]
[%clk 00:02:22]} 13. Qxb7 {[%emt 00:00:02] [%clk 00:02:39]} g6 {[%emt 00:00:07]
[%clk 00:02:18]} 14. b3 {[%emt 00:00:15] [%clk 00:02:26]} Bh6 {[%emt 00:00:04]
[%clk 00:02:16]} 15. Nxf5 {[%emt 00:00:14] [%clk 00:02:14]} gxf5 {[%emt
00:00:07] [%clk 00:02:10]} 16. Ba3 {[%emt 00:00:02] [%clk 00:02:14]} Rb8 {[%emt
00:00:31] [%clk 00:01:41]} 17. Qxa7 {[%emt 00:00:05] [%clk 00:02:12]} Rc8 {[%emt
00:00:08] [%clk 00:01:35]} 18. Qxe7+ {[%emt 00:00:20] [%clk 00:01:53]} Qxe7
{[%emt 00:00:02] [%clk 00:01:35]} 19. Bxe7 {[%emt 00:00:02] [%clk 00:01:53]}
Kxe7 {[%emt 00:00:01] [%clk 00:01:35]} 20. g3 {[%emt 00:00:02] [%clk 00:01:54]}
c5 {[%emt 00:00:08] [%clk 00:01:29]} 21. Kd2 {[%emt 00:00:03] [%clk 00:01:53]}
Kd7 {[%emt 00:00:06] [%clk 00:01:25]} 22. Kd3 {[%emt 00:00:06] [%clk 00:01:49]}
c4+ {[%emt 00:00:04] [%clk 00:01:23]} 23. Kd2 {[%emt 00:00:04] [%clk 00:01:47]}
h4 {[%emt 00:00:09] [%clk 00:01:16]} 24. b4 {[%emt 00:00:04] [%clk 00:01:45]}
Rcg8 {[%emt 00:00:05] [%clk 00:01:13]} 25. Ke2 {[%emt 00:00:34] [%clk 00:01:13]}
hxg3 {[%emt 00:00:05] [%clk 00:01:09]} 26. hxg3 {[%emt 00:00:02] [%clk
00:01:14]} Rxg3 {[%emt 00:00:01] [%clk 00:01:10]} 27. Rh2 {[%emt 00:00:02] [%clk
00:01:14]} Bg7 {[%emt 00:00:07] [%clk 00:01:04]} 28. Rxh8 {[%emt 00:00:05] [%clk
00:01:12]} Bxh8 {[%emt 00:00:01] [%clk 00:01:05]} 29. Kf2 {[%emt 00:00:02] [%clk
00:01:13]} Rg8 {[%emt 00:00:02] [%clk 00:01:03]} 30. a4 {[%emt 00:00:07] [%clk
00:01:08]} Bg7 {[%emt 00:00:02] [%clk 00:01:03]} 31. Rg1 {[%emt 00:00:03] [%clk
00:01:07]} Ke7 {[%emt 00:00:06] [%clk 00:00:59]} 32. a5 {[%emt 00:00:03] [%clk
00:01:07]} f6 {[%emt 00:00:01] [%clk 00:00:59]} 33. a6 {[%emt 00:00:06] [%clk
00:01:04]} Kf7 {[%emt 00:00:01] [%clk 00:01:00]} 34. exf6 {[%emt 00:00:05] [%clk
00:01:01]} Kxf6 {[%emt 00:00:03] [%clk 00:00:59]} 35. Ne5 {[%emt 00:00:02] [%clk
00:01:01]} 1-0

[Site "Europe Echecs"]

[Event "Championnat d'Europe de Blitz"]
[Date "2024.12.09"]
[White "Nikolaev, Georgi"]
[Black "Pacher, Milan"]
[WhiteElo "2032"]
[BlackElo "2310"]
[Round "12.48"]
[Result "0-1"]
[TimeControl "180+2"]

1. e4 {[%clk 00:03:03]} e5 {[%emt 00:00:03] [%clk 00:03:04]} 2. Nf3 {[%clk
00:03:04]} Nc6 {[%clk 00:03:04]} 3. d4 {[%clk 00:03:06]} exd4 {[%emt 00:00:01]
[%clk 00:03:05]} 4. Bc4 {[%clk 00:03:07]} Nf6 {[%emt 00:00:01] [%clk 00:03:05]}
5. e5 {[%clk 00:03:08]} d5 {[%emt 00:00:01] [%clk 00:03:06]} 6. Bb5 {[%emt
00:00:01] [%clk 00:03:10]} Ne4 {[%emt 00:00:01] [%clk 00:03:07]} 7. Nxd4 {[%emt
00:00:01] [%clk 00:03:11]} Bd7 {[%emt 00:00:02] [%clk 00:03:07]} 8. Bxc6 {[%clk
00:03:12]} bxc6 {[%emt 00:00:02] [%clk 00:03:07]} 9. O-O {[%emt 00:00:01] [%clk
00:03:12]} Bc5 {[%emt 00:00:02] [%clk 00:03:08]} 10. f3 {[%clk 00:03:13]} Ng5
{[%emt 00:00:02] [%clk 00:03:07]} 11. f4 {[%emt 00:00:01] [%clk 00:03:14]} Ne4
{[%emt 00:00:01] [%clk 00:03:08]} 12. Be3 {[%clk 00:03:15]} O-O {[%emt 00:00:03]
[%clk 00:03:06]} 13. Nd2 {[%emt 00:00:02] [%clk 00:03:16]} Nxd2 {[%emt 00:00:07]
[%clk 00:03:02]} 14. Qxd2 {[%emt 00:00:01] [%clk 00:03:17]} Bb6 {[%emt 00:00:02]
[%clk 00:03:02]} 15. Nb3 {[%emt 00:00:06] [%clk 00:03:13]} Qe7 {[%emt 00:00:06]
[%clk 00:02:58]} 16. Qc3 {[%emt 00:00:03] [%clk 00:03:11]} f6 {[%emt 00:00:10]
[%clk 00:02:51]} 17. Bc5 {[%emt 00:00:32] [%clk 00:02:40]} fxe5 {[%emt 00:00:14]
[%clk 00:02:39]} 18. fxe5 {[%emt 00:00:01] [%clk 00:02:41]} Rxf1+ {[%emt
00:00:37] [%clk 00:02:04]} 19. Rxf1 {[%clk 00:02:42]} Re8 {[%emt 00:00:02] [%clk
00:02:05]} 20. a4 {[%emt 00:00:28] [%clk 00:02:16]} a5 {[%emt 00:00:32] [%clk
00:01:35]} 21. Qe3 {[%emt 00:00:52] [%clk 00:01:24]} h6 {[%emt 00:00:16] [%clk
00:01:23]} 22. Bxb6 {[%emt 00:00:50] [%clk 00:00:36]} cxb6 {[%emt 00:00:02]
[%clk 00:01:23]} 23. Qxb6 {[%emt 00:00:04] [%clk 00:00:34]} Qxe5 {[%emt
00:00:02] [%clk 00:01:23]} 24. Qf2 {[%emt 00:00:30] [%clk 00:00:06]} Kh7 {[%emt
00:00:09] [%clk 00:01:16]} 25. c3 {[%emt 00:00:04] [%clk 00:00:05]} Qg5 {[%emt
00:00:19] [%clk 00:00:58]} 26. Nxa5 {[%emt 00:00:04] [%clk 00:00:04]} d4 {[%emt
00:00:07] [%clk 00:00:53]} 27. Nb3 {[%emt 00:00:01] [%clk 00:00:04]} d3 {[%emt
00:00:04] [%clk 00:00:51]} 28. Re1 {[%emt 00:00:02] [%clk 00:00:05]} c5 {[%emt
00:00:16] [%clk 00:00:36]} 29. Rxe8 {[%emt 00:00:02] [%clk 00:00:06]} Bxe8
{[%clk 00:00:37]} 30. Qd2 {[%emt 00:00:02] [%clk 00:00:06]} Qd5 {[%emt 00:00:12]
[%clk 00:00:26]} 31. Nc1 {[%emt 00:00:02] [%clk 00:00:07]} c4 {[%emt 00:00:02]
[%clk 00:00:27]} 32. a5 {[%emt 00:00:01] [%clk 00:00:07]} Qxa5 {[%emt 00:00:03]
[%clk 00:00:25]} 33. Nxd3 {[%emt 00:00:02] [%clk 00:00:08]} Qd5 {[%emt 00:00:06]
[%clk 00:00:21]} 34. Qe3 {[%emt 00:00:03] [%clk 00:00:07]} cxd3 {[%emt 00:00:02]
[%clk 00:00:21]} 35. c4 {[%emt 00:00:05] [%clk 00:00:05]} Qxc4 {[%emt 00:00:06]
[%clk 00:00:16]} 36. Qxe8 {[%emt 00:00:02] [%clk 00:00:04]} Qd4+ {[%clk
00:00:17]} 37. Kf1 {[%emt 00:00:03] [%clk 00:00:03]} d2 {[%emt 00:00:01] [%clk
00:00:18]} 0-1

[Site "Europe Echecs"]

[Event "Championnat d'Europe de Blitz"]
[Date "2024.12.09"]
[White "Diermair, Andreas"]
[Black "Avramidou, Anastasia"]
[WhiteElo "2433"]
[BlackElo "2298"]
[Round "12.49"]
[Result "1-0"]
[TimeControl "180+2"]

1. d4 {[%emt 00:00:03] [%clk 00:03:03]} Nf6 {[%clk 00:03:02]} 2. Nf3 {[%clk
00:03:03]} g6 {[%clk 00:03:04]} 3. g3 {[%emt 00:00:02] [%clk 00:03:03]} Bg7
{[%emt 00:00:01] [%clk 00:03:05]} 4. Bg2 {[%clk 00:03:04]} O-O {[%emt 00:00:01]
[%clk 00:03:06]} 5. O-O {[%emt 00:00:02] [%clk 00:03:04]} d5 {[%emt 00:00:01]
[%clk 00:03:07]} 6. c4 {[%emt 00:00:01] [%clk 00:03:05]} Nc6 {[%emt 00:00:01]
[%clk 00:03:08]} 7. cxd5 {[%emt 00:00:05] [%clk 00:03:02]} Nxd5 {[%clk
00:03:09]} 8. Nc3 {[%emt 00:00:02] [%clk 00:03:02]} Nxc3 {[%emt 00:00:01] [%clk
00:03:09]} 9. bxc3 {[%emt 00:00:02] [%clk 00:03:03]} e5 {[%clk 00:03:10]} 10. e3
{[%emt 00:00:05] [%clk 00:03:00]} Re8 {[%emt 00:00:07] [%clk 00:03:06]} 11. Rb1
{[%emt 00:00:04] [%clk 00:02:59]} e4 {[%emt 00:00:16] [%clk 00:02:51]} 12. Nd2
{[%emt 00:00:03] [%clk 00:02:58]} f5 {[%clk 00:02:52]} 13. f3 {[%emt 00:00:12]
[%clk 00:02:48]} exf3 {[%emt 00:00:34] [%clk 00:02:20]} 14. Nxf3 {[%emt
00:00:03] [%clk 00:02:47]} h6 {[%emt 00:00:07] [%clk 00:02:15]} 15. Nh4 {[%emt
00:00:08] [%clk 00:02:40]} Kh7 {[%emt 00:00:19] [%clk 00:01:58]} 16. Qc2 {[%emt
00:00:02] [%clk 00:02:41]} Qd6 {[%emt 00:00:17] [%clk 00:01:43]} 17. e4 {[%emt
00:00:13] [%clk 00:02:29]} fxe4 {[%emt 00:00:17] [%clk 00:01:29]} 18. Bxe4
{[%emt 00:00:10] [%clk 00:02:21]} Ne7 {[%emt 00:00:07] [%clk 00:01:23]} 19. Bf4
{[%emt 00:00:16] [%clk 00:02:08]} Qa6 {[%emt 00:00:13] [%clk 00:01:12]} 20. Rfe1
{[%emt 00:00:19] [%clk 00:01:50]} Rf8 {[%emt 00:00:41] [%clk 00:00:34]} 21. Bd3
{[%emt 00:00:07] [%clk 00:01:45]} Qf6 {[%emt 00:00:01] [%clk 00:00:35]} 22. Rxe7
{[%emt 00:00:05] [%clk 00:01:41]} Qxe7 {[%emt 00:00:03] [%clk 00:00:34]} 23.
Nxg6 {[%emt 00:00:03] [%clk 00:01:41]} Qf6 {[%emt 00:00:06] [%clk 00:00:30]} 24.
Nxf8+ {[%emt 00:00:03] [%clk 00:01:40]} Kg8 {[%clk 00:00:32]} 25. Ng6 {[%emt
00:00:04] [%clk 00:01:38]} Be6 {[%emt 00:00:08] [%clk 00:00:25]} 26. Be5 {[%emt
00:00:13] [%clk 00:01:28]} Qf7 {[%emt 00:00:02] [%clk 00:00:26]} 27. Rf1 {[%emt
00:00:03] [%clk 00:01:26]} Qd7 {[%emt 00:00:04] [%clk 00:00:24]} 28. Bxg7 {[%emt
00:00:04] [%clk 00:01:24]} Qxg7 {[%emt 00:00:01] [%clk 00:00:24]} 29. Nf4 {[%emt
00:00:03] [%clk 00:01:23]} Bf7 {[%emt 00:00:02] [%clk 00:00:25]} 30. Bg6 {[%emt
00:00:04] [%clk 00:01:21]} Bc4 {[%emt 00:00:01] [%clk 00:00:26]} 31. Re1 {[%emt
00:00:04] [%clk 00:01:19]} Rf8 {[%emt 00:00:01] [%clk 00:00:27]} 32. Qe4 {[%emt
00:00:23] [%clk 00:00:58]} Kh8 {[%emt 00:00:07] [%clk 00:00:22]} 33. Ne6 {[%emt
00:00:05] [%clk 00:00:55]} Bxe6 {[%emt 00:00:04] [%clk 00:00:20]} 34. Qxe6
{[%clk 00:00:56]} c5 {[%emt 00:00:03] [%clk 00:00:19]} 35. Qe5 {[%emt 00:00:10]
[%clk 00:00:48]} cxd4 {[%emt 00:00:02] [%clk 00:00:19]} 36. cxd4 {[%emt
00:00:01] [%clk 00:00:49]} Rd8 {[%clk 00:00:21]} 37. d5 {[%emt 00:00:12] [%clk
00:00:40]} b5 {[%emt 00:00:07] [%clk 00:00:16]} 38. Qe8+ {[%emt 00:00:04] [%clk
00:00:37]} 1-0

[Site "Europe Echecs"]